bitfinex/quotes_ETHUSD_20250622
["timestamp","ask_amount","ask_price","bid_price","bid_amount"]
[1750615212178,7.633,2196.7,2196.4,0.0616]
[1750615212538,7.633,2196.7,2196.5,8.96927336]
[1750615212754,7.633,2196.7,2196.5,9.03087336]
[1750615213048,0.04816518,2196.8,2196.4,0.8094]
[1750615213251,0.04816518,2196.8,2196.4,0.871]
[1750615213473,0.04816518,2196.8,2196.4,0.8094]
[1750615213669,0.04816518,2196.8,2196.4,0.871]
[1750615213971,0.04816518,2196.8,2196.5,0.0616]
[1750615214282,0.04816518,2196.8,2196.4,0.0616]
[1750615214483,8.1245,2196.9,2196.4,0.0616]
[1750615214484,8.1245,2196.9,2196.5,8.96927336]
[1750615214485,0.4425,2196.9,2196.5,8.96927336]
[1750615214680,9.958,2197.1,2196.7,8.96927336]
[1750615214681,2.048,2197.1,2196.7,8.96927336]
[1750615214973,2.048,2197.1,2196.3,0.55]
[1750615214974,2.048,2197.1,2196.3,9.74887336]
[1750615214975,0.14245186,2197.0,2196.3,9.74887336]
[1750615215178,0.4425,2196.8,2196.4,0.0616]
[1750615215340,0.4425,2196.8,2196.3,9.74887336]
[1750615215542,0.4425,2196.8,2196.5,0.0616]
[1750615215776,0.49066518,2197.0,2196.5,8.96927336]
[1750615215979,0.14245998,2196.9,2196.5,8.96927336]
[1750615216148,0.49066518,2197.0,2196.5,8.96927336]
[1750615216553,0.4425,2197.0,2196.5,8.96927336]
[1750615216754,0.4425,2197.0,2196.6,0.99441607]
[1750615217073,0.4425,2197.0,2196.5,8.96927336]
[1750615217595,2.09616518,2197.1,2196.7,8.96927336]
[1750615217880,0.4425,2197.2,2196.7,8.96927336]
[1750615218045,7.63,2197.0,2196.8,0.7796]
[1750615218844,7.63,2197.0,2196.9,8.96927336]
[1750615219176,7.91,2197.4,2196.9,8.96927336]
[1750615219373,7.82059782,2197.3,2196.9,9.9441607]
[1750615219618,7.91,2197.4,2197.1,8.96927336]
[1750615219799,2.4825,2197.5,2197.1,8.96927336]
[1750615220094,7.629,2197.3,2197.1,8.96927336]
[1750615220449,2.4825,2197.5,2197.1,8.96927336]
[1750615220646,2.04,2197.5,2197.1,8.96927336]
[1750615220858,7.629,2197.4,2197.3,8.96927336]
[1750615221144,7.67716518,2197.4,2197.0,0.52019971]
[1750615221368,7.67716518,2197.4,2197.0,0.0616]
[1750615222006,7.67716518,2197.4,2197.1,8.96927336]
[1750615222146,7.629,2197.4,2197.2,0.0616]
[1750615222343,7.629,2197.4,2197.3,9.02847336]
[1750615222588,2.04,2197.5,2197.4,0.0592]
[1750615222905,9.668,2197.5,2197.4,0.0592]
[1750615223047,7.628,2197.5,2197.4,0.0592]
[1750615223744,10.944,2197.7,2197.5,0.0592]
[1750615223971,7.628,2197.6,2197.5,0.0592]
[1750615224154,7.628,2197.6,2197.5,9.02847336]
[1750615224556,3.94325873,2197.9,2197.5,10.0902987]
[1750615224773,3.94325873,2197.9,2197.4,1.36818]
[1750615224774,7.628,2197.6,2197.4,1.36818]
[1750615224975,0.04816518,2197.5,2197.4,1.36818]
[1750615225182,0.49066518,2197.5,2197.4,1.36818]
[1750615225873,0.04816518,2197.5,2197.4,1.36818]
[1750615226592,7.57616518,2197.6,2197.4,1.36818]
[1750615227164,0.4925,2197.5,2197.4,1.36818]
[1750615227567,0.4925,2197.5,2196.5,0.8136]
[1750615227568,10.19243925,2197.5,2196.5,0.8136]
[1750615227766,0.4425,2197.3,2196.5,0.97828734]
[1750615227982,0.4925,2197.3,2197.1,1.368591]
[1750615228183,0.4425,2197.3,2197.1,1.368591]
[1750615228592,0.4925,2197.3,2197.1,1.368591]
[1750615228967,0.4425,2197.3,2197.1,1.368591]
[1750615230698,2.4825,2197.8,2197.2,8.96927336]
[1750615230996,7.625,2197.4,2197.2,10.0854798]
[1750615231166,7.625,2197.4,2197.3,0.0592]
[1750615234063,7.625,2197.4,2197.1,1.368591]
[1750615234064,8.0675,2197.4,2197.1,1.368591]
[1750615234464,8.1175,2197.4,2197.1,1.368591]
[1750615235090,8.0675,2197.4,2197.1,1.368591]
[1750615235297,2.09,2197.3,2197.1,1.368591]
[1750615235869,2.04,2197.3,2197.1,1.368591]
[1750615236805,8.0675,2197.4,2197.1,1.368591]
[1750615237106,7.623,2197.3,2197.1,1.368591]
[1750615237276,7.673,2197.3,2197.1,1.368591]
[1750615238978,7.623,2197.3,2197.1,1.368591]
[1750615239182,0.63494932,2197.2,2196.3,0.7604]
[1750615239370,0.14246567,2197.1,2196.6,1.368723]
[1750615239572,0.4925,2197.2,2196.6,1.368723]
[1750615239573,0.19246548,2197.0,2196.6,1.368723]
[1750615239772,2.04,2196.9,2196.6,1.368723]
[1750615239968,7.622,2196.8,2196.6,1.368723]
[1750615240275,7.622,2196.8,2196.6,10.33799636]
[1750615240482,7.622,2196.8,2196.6,1.368723]
[1750615244217,8.0645,2196.8,2196.6,1.368723]
[1750615245582,7.622,2196.8,2196.6,1.427923]
[1750615245933,7.622,2196.8,2196.6,1.368723]
[1750615249222,2.035,2197.1,2196.7,0.7767]
[1750615249443,0.4425,2197.4,2197.0,8.96927336]
[1750615249588,7.76243693,2197.3,2197.1,0.7767]
[1750615249802,7.62,2197.3,2197.1,1.75129734]
[1750615250199,11.3825,2197.6,2197.1,1.75129734]
[1750615250395,7.76243158,2197.5,2197.1,1.75129734]
[1750615250716,7.76243093,2197.4,2197.1,1.75129734]
[1750615250917,7.62,2197.4,2197.1,1.75129734]
[1750615251252,2.035,2198.0,2197.4,0.0592]
[1750615251402,7.76240171,2197.8,2197.5,8.96927336]
[1750615251598,7.62,2197.8,2197.6,0.0592]
[1750615251804,2.035,2198.0,2197.8,0.8359]
[1750615252003,0.4425,2198.3,2197.8,0.8359]
[1750615252408,7.619,2198.0,2197.8,0.8359]
[1750615252813,0.4425,2198.5,2197.8,13.96755553]
[1750615253015,7.618,2198.1,2197.8,15.36886086]
[1750615253526,7.618,2198.1,2197.9,0.0581]
[1750615254131,7.618,2198.1,2197.2,16.07185495]
[1750615254132,7.618,2198.1,2197.4,0.0581]
[1750615254840,7.618,2198.1,2197.7,0.0581]
[1750615255007,7.618,2198.1,2197.6,0.7561]
[1750615255345,7.618,2198.1,2197.8,0.0581]
[1750615255526,7.618,2198.1,2197.7,1.38877555]
[1750615255745,7.618,2198.1,2197.8,0.0581]
[1750615255925,7.618,2198.1,2197.7,1.38877555]
[1750615256548,7.617,2198.1,2197.8,0.04549488]
[1750615256721,7.617,2198.1,2197.8,0.04549489]
[1750615257544,7.616,2198.2,2197.8,0.04549489]
[1750615258244,7.616,2198.2,2197.7,1.38877555]
[1750615259849,0.4425,2198.1,2197.7,1.367974]
[1750615260009,0.4925,2198.1,2197.7,1.367974]
[1750615260964,0.4425,2197.9,2197.7,1.367974]
[1750615261124,2.4765,2197.9,2197.7,1.367974]
[1750615261820,12.4765,2197.9,2197.7,1.367974]
[1750615262042,12.5265,2197.9,2197.7,1.367974]
[1750615262366,12.034,2197.9,2197.7,1.367974]
[1750615262509,0.4425,2198.2,2197.7,1.367974]
[1750615262706,0.05,2198.0,2197.7,1.367974]
[1750615262930,7.614,2197.9,2197.7,1.367974]
[1750615263140,0.4425,2197.8,2197.7,1.367974]
[1750615264142,7.614,2197.9,2197.7,1.367974]
[1750615264916,0.4425,2198.1,2197.7,2.231474]
[1750615265140,7.614,2198.0,2197.7,2.231474]
[1750615265528,0.4425,2198.3,2197.8,0.041]
[1750615265751,7.613,2198.2,2197.9,0.041]
[1750615265930,7.613,2198.2,2197.9,1.58186252]
[1750615266329,7.613,2198.2,2197.9,0.041]
[1750615266531,7.613,2198.2,2197.7,2.190474]
[1750615266936,0.4925,2198.1,2197.7,1.367974]
[1750615267229,0.4425,2198.1,2197.7,1.367974]
[1750615267433,0.4925,2198.1,2197.7,1.367974]
[1750615269450,0.4425,2198.1,2197.7,1.367974]
[1750615269775,7.612,2198.1,2197.8,0.8096]
[1750615269971,2.034,2198.4,2197.8,0.8096]
[1750615270135,7.612,2198.3,2197.8,0.8096]
[1750615270434,7.612,2198.3,2197.7,1.367974]
[1750615270435,2.034,2199.0,2198.2,10.0]
[1750615270634,2.5265,2199.5,2198.8,0.8096]
[1750615270950,7.611,2199.5,2199.0,13.13165553]
[1750615271160,7.611,2199.5,2199.1,0.0581]
[1750615271671,7.611,2199.5,2199.1,1.367014]
[1750615272038,7.611,2199.5,2199.2,0.0581]
[1750615272372,7.611,2199.5,2199.3,0.8096]
[1750615272772,7.611,2199.5,2199.3,0.8677]
[1750615273073,7.611,2199.5,2199.4,0.0581]
[1750615273370,7.611,2199.8,2199.4,0.0581]
[1750615273538,7.611,2199.8,2199.4,1.40448227]
[1750615273740,7.611,2199.8,2199.5,0.0581]
[1750615273938,0.4425,2200.3,2199.5,0.0581]
[1750615274169,19.638,2200.2,2199.5,0.0581]
[1750615275141,9.638,2200.2,2199.5,0.0581]
[1750615275338,9.638,2200.2,2199.5,1.59848378]
[1750615275875,9.688,2200.2,2199.5,1.59848378]
[1750615276050,9.588,2200.2,2199.5,1.59848378]
[1750615276247,9.588,2200.2,2199.5,1.54038378]
[1750615276453,0.05,2200.1,2199.3,0.8096]
[1750615276979,7.607,2200.0,2199.3,0.8096]
[1750615277276,7.607,2200.0,2199.4,0.0581]
[1750615278373,0.05,2199.9,2199.3,0.8096]
[1750615278977,10.0,2200.4,2199.6,0.0581]
[1750615279157,7.656,2200.3,2199.6,0.0581]
[1750615279640,8.0985,2200.3,2199.5,0.8276]
[1750615279846,8.0985,2200.3,2199.5,0.8857]
[1750615280042,8.0985,2200.3,2199.5,2.28743555]
[1750615280251,0.14226918,2200.2,2199.5,2.28743555]
[1750615280455,2.078,2200.1,2199.5,2.22933555]
[1750615280638,2.078,2200.1,2199.5,0.8276]
[1750615281488,2.028,2200.1,2199.6,1.366832]
[1750615281843,0.05,2200.0,2199.6,1.366832]
[1750615282269,2.028,2200.1,2199.6,1.366832]
[1750615282680,0.05,2200.0,2199.6,1.366832]
[1750615283181,2.028,2200.1,2199.6,1.366832]
[1750615283380,0.05,2200.0,2199.6,1.366832]
[1750615284158,0.4925,2199.7,2199.6,1.366832]
[1750615284373,0.4925,2199.7,2198.2,0.8439]
[1750615284374,0.55,2199.4,2198.2,0.8439]
[1750615284679,0.0083,2199.2,2198.7,1.366832]
[1750615284883,10.0,2199.0,2198.4,0.0594]
[1750615285190,7.603,2198.9,2198.6,0.0594]
[1750615285477,0.0083,2199.7,2198.6,0.0594]
[1750615285478,7.603,2199.0,2198.7,0.0594]
[1750615285869,7.603,2199.0,2198.8,0.0594]
[1750615286377,7.603,2199.0,2198.6,2.39755555]
[1750615286378,7.603,2199.0,2198.6,2.45695555]
[1750615286579,7.603,2199.0,2198.7,0.0594]
[1750615287376,7.603,2199.0,2198.8,0.0594]
[1750615287556,7.603,2199.0,2198.6,2.39755555]
[1750615287879,7.603,2199.0,2198.7,0.0594]
[1750615288262,7.603,2199.0,2198.7,1.32414555]
[1750615288462,7.604,2199.1,2198.7,1.32414555]
[1750615288661,7.604,2199.1,2198.7,1.38354555]
[1750615289284,7.604,2199.1,2198.7,0.0594]
[1750615289986,7.604,2199.1,2198.6,2.84597827]
[1750615290161,7.604,2199.1,2198.6,2.39755555]
[1750615290490,7.604,2199.1,2198.5,0.8439]
[1750615290491,8.0465,2199.1,2198.5,0.8439]
[1750615291887,0.14233704,2199.0,2198.5,0.8439]
[1750615292063,8.0465,2199.1,2198.5,0.8439]
[1750615292251,0.14233486,2199.0,2198.5,0.8439]
[1750615292453,0.14233905,2198.9,2198.3,1.29790723]
[1750615292662,8.0465,2199.1,2198.3,0.8439]
[1750615293074,0.14234596,2199.0,2198.3,0.8439]
[1750615293274,0.14234596,2198.9,2198.3,3.58099305]
[1750615293490,8.0465,2199.1,2198.3,3.58099305]
[1750615293651,0.14234285,2199.0,2198.3,3.58099305]
[1750615293855,8.0465,2199.1,2198.3,3.58099305]
[1750615293856,0.14234285,2198.9,2198.3,3.58099305]
[1750615294092,15.9565,2199.1,2198.3,3.58099305]
[1750615294299,0.14234522,2199.0,2198.3,3.58099305]
[1750615294595,0.0083,2198.8,2198.4,1.36773]
[1750615294801,2.17034522,2198.7,2198.4,1.36773]
[1750615295013,10.58484522,2198.6,2198.4,1.36773]
[1750615295224,10.58484522,2198.6,2197.3,0.7845]
[1750615295225,10.0,2198.4,2197.3,0.7845]
[1750615295363,0.15064522,2198.3,2197.9,1.36773]
[1750615295568,2.028,2198.2,2197.9,1.36773]
[1750615295803,0.14239224,2198.1,2197.8,0.7845]
[1750615296024,2.028,2198.2,2197.9,1.36773]
[1750615296176,0.14239901,2198.1,2197.9,1.36773]
[1750615296375,0.14239901,2198.0,2197.8,0.7845]
[1750615296568,7.602,2197.9,2197.8,0.7845]
[1750615296769,7.602,2197.9,2197.8,2.152554]
[1750615296981,7.602,2197.9,2197.8,1.368054]
[1750615297177,7.74440717,2197.9,2197.5,0.7845]
[1750615297383,7.602,2197.9,2197.6,1.368186]
[1750615297611,0.14241324,2197.8,2197.2,6.37177709]
[1750615297774,0.14241324,2197.7,2197.3,10.0]
[1750615297969,0.14242619,2197.6,2197.5,1.368186]
[1750615298297,0.0083,2197.5,2197.0,0.7845]
[1750615298484,2.4705,2197.7,2197.2,1.368373]
[1750615298704,9.7734362,2197.6,2197.3,0.0594]
[1750615298901,9.7734362,2197.6,2197.2,1.368373]
[1750615298902,9.631,2197.6,2197.2,1.368373]
[1750615299295,9.631,2197.6,2197.2,1.427773]
[1750615299606,0.14242564,2197.5,2197.2,1.427773]
[1750615299814,9.631,2197.6,2197.2,1.427773]
[1750615299983,0.14242756,2197.5,2197.2,1.427773]
[1750615300180,7.91,2197.8,2197.2,1.427773]
[1750615300420,0.14242855,2197.7,2197.2,14.50002853]
[1750615300618,7.603,2197.7,2197.3,0.80250312]
[1750615300803,7.603,2197.7,2197.4,0.0594]
[1750615300997,7.604,2197.7,2197.4,0.0594]
[1750615301198,7.604,2197.7,2197.5,0.0594]
[1750615301414,7.604,2197.7,2197.4,1.65376558]
[1750615301725,7.604,2197.7,2197.5,0.0594]
[1750615302222,7.604,2197.7,2197.4,1.65376558]
[1750615302786,7.604,2197.7,2197.5,0.0594]
[1750615303104,7.604,2197.7,2197.4,0.0594]
[1750615303306,7.604,2197.7,2197.3,0.757]
[1750615303514,7.604,2197.7,2197.5,0.0594]
[1750615303815,7.91,2198.0,2197.3,0.757]
[1750615304009,7.91,2198.0,2197.2,15.72125583]
[1750615304010,0.4425,2197.8,2197.2,1.368373]
[1750615304601,0.4508,2197.8,2197.2,1.368373]
[1750615304922,0.14242948,2197.7,2197.2,1.368373]
[1750615305144,0.4508,2197.8,2197.2,1.368373]
[1750615305625,0.1424293,2197.7,2197.2,1.368373]
[1750615305824,0.4508,2197.8,2197.2,1.368373]
[1750615306625,7.91,2197.7,2197.2,1.368373]
[1750615306864,0.0083,2197.5,2196.7,0.7699]
[1750615307150,0.0083,2197.1,2196.9,1.36861]
[1750615307305,0.4425,2197.3,2196.3,10.7699]
[1750615307487,0.14246725,2197.2,2196.7,1.368797]
[1750615307688,0.4425,2197.3,2196.7,1.368797]
[1750615307888,0.14246802,2197.2,2196.7,1.368797]
[1750615308217,0.14246802,2197.1,2196.7,1.368797]
[1750615308523,0.4425,2197.3,2196.7,1.368797]
[1750615308710,0.14246756,2197.2,2196.7,1.368797]
[1750615309032,9.629,2197.1,2196.7,1.368797]
[1750615309544,0.4425,2197.0,2196.5,0.801]
[1750615309859,0.4425,2197.0,2196.6,1.368798]
[1750615310196,0.4425,2197.0,2196.2,13.13165553]
[1750615310197,0.15078051,2196.9,2196.2,0.801]
[1750615310398,0.0083,2196.9,2196.2,0.801]
[1750615310602,7.604,2196.8,2196.3,1.369016]
[1750615310905,7.91,2197.0,2196.3,2.99066068]
[1750615311102,9.63,2196.9,2196.4,10.801]
[1750615311602,9.63,2196.9,2196.3,2.94513422]
[1750615311603,7.604,2196.8,2196.7,0.0594]
[1750615312631,7.604,2196.8,2196.6,0.801]
[1750615313195,7.604,2196.8,2196.4,0.0621]
[1750615315551,2.026,2196.7,2196.3,1.369016]
[1750615315838,0.15078146,2196.6,2195.8,0.8186]
[1750615316004,0.14251095,2196.5,2196.0,1.369172]
[1750615316212,0.14251359,2196.4,2196.0,1.369172]
[1750615316540,7.74751359,2196.3,2196.0,1.369172]
[1750615316844,2.61101359,2196.2,2195.6,0.8807]
[1750615317011,0.14251359,2196.1,2195.9,1.369172]
[1750615317212,2.4685,2196.2,2195.9,1.369172]
[1750615317438,0.4425,2196.0,2195.4,1.71777151]
[1750615317617,0.14253039,2195.9,2195.5,1.369504]
[1750615317816,7.74753039,2195.8,2195.5,1.369504]
[1750615318022,2.16853039,2195.7,2195.5,1.369504]
[1750615318259,2.026,2195.7,2195.5,1.369504]
[1750615319366,0.14255347,2195.6,2195.5,1.369504]
[1750615319566,0.4425,2196.9,2195.6,0.7544]
[1750615319854,0.0083,2196.6,2195.6,0.7544]
[1750615320039,0.4508,2196.3,2195.5,1.369504]
[1750615320241,9.77453371,2196.2,2195.5,1.369504]
[1750615320450,10.15083371,2196.1,2195.5,1.369504]
[1750615320741,8.05253371,2196.0,2195.5,1.369504]
[1750615320919,7.91,2196.0,2195.5,1.369504]
[1750615321116,0.14254423,2195.9,2195.5,1.369504]
[1750615321424,7.606,2195.8,2195.6,0.0621]
[1750615321620,7.606,2195.8,2195.5,1.331604]
[1750615321838,7.74853334,2195.8,2195.5,1.331604]
[1750615322458,0.14253334,2195.8,2195.6,13.88605553]
[1750615322664,0.4425,2196.6,2195.7,1.3044]
[1750615322962,0.0585,2196.9,2196.0,0.7544]
[1750615322963,2.027,2196.5,2196.0,0.7544]
[1750615323125,9.634,2196.5,2196.0,0.7544]
[1750615323820,9.634,2196.5,2196.1,0.0621]
[1750615324021,9.634,2196.5,2196.2,0.0621]
[1750615324460,9.634,2196.5,2196.0,0.79993196]
[1750615324620,0.14249149,2196.4,2196.1,0.0621]
[1750615324822,9.634,2196.5,2196.1,0.0621]
[1750615325435,0.14249473,2196.4,2196.0,0.79993197]
[1750615325648,9.634,2196.5,2196.2,0.0621]
[1750615325942,0.14249156,2196.4,2196.1,0.0621]
[1750615326142,9.634,2196.5,2196.0,0.79993197]
[1750615326361,0.14249174,2196.4,2196.0,0.79993197]
[1750615326537,0.4425,2196.8,2196.0,0.7544]
[1750615326538,0.14249723,2196.3,2196.0,0.7544]
[1750615326738,7.607,2196.3,2196.1,0.0621]
[1750615327347,7.607,2196.3,2196.2,0.0621]
[1750615327550,7.74948868,2196.3,2196.2,0.0621]
[1750615327749,0.14248868,2196.3,2196.2,0.0621]
[1750615328675,0.14248751,2196.3,2196.2,0.0621]
[1750615329661,0.14247808,2196.3,2196.2,14.43525553]
[1750615329965,7.607,2196.6,2196.2,15.87878108]
[1750615330152,0.14247932,2196.5,2196.3,0.0621]
[1750615330355,0.14247932,2196.4,2196.3,0.0621]
[1750615330855,0.14247932,2196.4,2196.3,1.430897]
[1750615331583,0.14248352,2196.4,2196.3,1.47642509]
[1750615331743,0.14248146,2196.4,2196.3,1.430897]
[1750615332240,0.14248027,2196.4,2196.3,1.430897]
[1750615332446,7.607,2196.6,2196.3,1.430897]
[1750615332648,0.14248095,2196.5,2196.4,0.0621]
[1750615332963,0.14248095,2196.5,2196.4,2.39284248]
[1750615333163,0.14248095,2196.5,2196.4,2.34731525]
[1750615333477,0.14248095,2196.5,2196.4,0.8157]
[1750615333698,12.967,2197.2,2196.5,0.55]
[1750615333988,0.14244886,2197.1,2196.8,0.0621]
[1750615334144,0.14244886,2197.0,2196.9,0.8261]
[1750615334350,0.14244886,2197.0,2196.9,0.8882]
[1750615334944,0.14243881,2197.0,2196.9,0.8882]
[1750615335354,0.14243962,2197.0,2196.9,0.8882]
[1750615336182,0.14244093,2197.0,2196.9,0.8261]
[1750615336548,0.14243969,2197.0,2196.9,0.8261]
[1750615336877,0.14243969,2197.0,2196.9,1.83247477]
[1750615337047,0.14243557,2197.0,2196.9,1.83247477]
[1750615337250,0.14243557,2197.0,2196.9,2.29881843]
[1750615337478,7.606,2197.3,2196.9,2.29881843]
[1750615337671,0.14243153,2197.2,2197.0,13.1771673]
[1750615337871,7.606,2197.4,2197.0,14.6792541]
[1750615338276,0.14242008,2197.3,2197.1,0.8182]
[1750615338586,9.631,2197.5,2197.1,0.8182]
[1750615338791,0.14241101,2197.4,2197.1,0.8182]
[1750615338965,9.631,2197.5,2197.2,1.54974541]
[1750615339168,0.1424134,2197.4,2197.2,1.54974541]
[1750615339481,7.606,2197.6,2197.2,1.54974541]
[1750615339649,0.14240989,2197.5,2197.2,1.54974541]
[1750615339853,7.606,2197.6,2197.2,1.54974541]
[1750615340065,7.606,2197.6,2197.2,2.91783141]
[1750615340862,0.4425,2198.0,2197.4,0.7794]
[1750615341155,7.74740761,2197.9,2197.4,0.8415]
[1750615341374,0.0585,2197.7,2197.2,1.368086]
[1750615341583,0.14240826,2197.6,2197.2,1.368086]
[1750615341749,0.501,2197.7,2197.2,1.368086]
[1750615341961,7.605,2197.9,2197.2,1.41359357]
[1750615341962,0.14241239,2197.6,2197.2,1.41359357]
[1750615342178,7.605,2197.9,2197.3,0.0621]
[1750615342385,0.14240959,2197.8,2197.3,13.19275553]
[1750615342561,0.14240959,2197.7,2197.4,0.0611]
[1750615342775,7.605,2197.9,2197.4,0.0611]
[1750615342983,0.1424129,2197.8,2197.4,0.0611]
[1750615343177,12.969,2198.2,2197.6,13.13165553]
[1750615343375,7.7473976,2198.1,2197.7,0.0611]
[1750615343692,0.4425,2198.5,2198.0,0.0611]
[1750615343866,7.76037563,2198.4,2197.9,13.95654832]
[1750615344070,7.618,2198.4,2198.0,0.0611]
[1750615344408,0.4425,2198.8,2198.0,0.0611]
[1750615344617,2.025,2198.5,2197.9,13.91105553]
[1750615344900,2.025,2198.5,2198.0,0.0611]
[1750615345107,2.025,2198.5,2197.9,15.43408864]
[1750615345108,7.619,2198.4,2197.9,15.43408864]
[1750615345398,7.619,2198.4,2198.0,0.0611]
[1750615345953,2.025,2198.5,2197.9,15.43408864]
[1750615346150,7.614,2198.4,2197.9,15.43408864]
[1750615346585,7.614,2198.4,2198.0,1.58889969]
[1750615346782,7.614,2198.4,2198.0,1.54340886]
[1750615346954,7.614,2198.4,2197.9,0.7794]
[1750615347154,7.6706,2198.4,2197.9,0.7794]
[1750615347793,0.0566,2198.2,2197.3,0.7794]
[1750615347954,0.0566,2198.0,2197.3,0.7794]
[1750615348154,0.58488091,2198.1,2197.3,0.7794]
[1750615348155,9.643,2197.9,2197.3,0.7794]
[1750615348785,9.643,2197.9,2197.3,1.9941486]
[1750615349189,9.643,2197.9,2197.3,0.7794]
[1750615349800,9.643,2197.9,2197.3,13.95655933]
[1750615349964,7.616,2197.8,2197.3,13.13165553]
[1750615350165,7.616,2197.8,2197.4,0.7631]
[1750615351201,7.616,2197.8,2197.5,0.0611]
[1750615351796,0.14241946,2197.7,2197.2,1.368086]
[1750615352011,2.0806,2197.6,2197.2,1.368086]
[1750615352304,2.024,2197.6,2197.2,1.368086]
[1750615352664,7.631,2197.6,2197.2,2.12552432]
[1750615352869,7.631,2197.6,2197.4,0.8242]
[1750615353084,7.631,2197.6,2197.4,0.7631]
[1750615353294,0.0566,2197.5,2197.2,1.368086]
[1750615353501,7.631,2197.6,2197.2,1.368086]
[1750615354763,10.0,2197.9,2197.2,1.41359619]
[1750615354969,9.80141567,2197.8,2197.2,2.17714451]
[1750615355193,9.659,2197.8,2197.2,2.17714451]
[1750615355505,7.633,2197.7,2197.3,13.98415553]
[1750615355808,7.633,2197.7,2197.5,0.0611]
[1750615356802,7.633,2197.7,2197.4,1.61157899]
[1750615360808,0.4425,2198.2,2197.6,13.13165553]
[1750615360996,7.91,2199.0,2197.9,13.13165553]
[1750615360997,7.628,2198.4,2197.9,13.13165553]
[1750615361192,0.14237623,2198.3,2197.7,0.8261]
[1750615361384,0.14237623,2198.2,2197.8,1.39577555]
[1750615361572,7.628,2198.4,2197.9,0.0611]
[1750615361771,7.628,2198.4,2197.7,0.8261]
[1750615361772,0.14237681,2198.3,2197.7,0.8261]
[1750615361971,0.19897681,2198.2,2197.7,0.8261]
[1750615362182,0.14238582,2198.1,2197.7,0.8261]
[1750615362526,0.1423868,2198.0,2197.7,2.48538555]
[1750615362683,7.628,2198.4,2197.8,0.04549514]
[1750615362884,0.1423805,2198.3,2197.8,0.0611]
[1750615363074,0.0566,2198.3,2197.7,2.54648555]
[1750615363274,0.0566,2198.3,2197.7,2.48538555]
[1750615363476,0.14238328,2198.2,2197.8,1.62280411]
[1750615363690,0.14238498,2198.1,2197.8,1.66829918]
[1750615363889,0.14238498,2198.0,2197.8,1.66829918]
[1750615364098,7.628,2198.4,2197.8,1.66829918]
[1750615364297,0.14238424,2198.3,2197.8,1.66829918]
[1750615364497,7.628,2198.4,2197.9,1.67833892]
[1750615364673,0.14237541,2198.3,2197.9,1.428899]
[1750615364875,0.14237541,2198.2,2197.9,1.428899]
[1750615365071,0.14237623,2198.1,2198.0,0.0611]
[1750615365310,7.624,2198.3,2198.0,0.8377]
[1750615365496,0.14236886,2198.2,2198.1,0.10658942]
[1750615365701,7.625,2198.4,2198.1,1.58375382]
[1750615366014,0.4425,2198.7,2198.1,1.58375382]
[1750615366191,7.623,2198.6,2198.3,0.7766]
[1750615366593,7.623,2198.6,2198.3,0.8220832]
[1750615366921,7.625,2198.7,2198.3,0.7766]
[1750615367092,10.94,2199.1,2198.6,0.7766]
[1750615367294,7.624,2199.2,2198.8,13.13165553]
[1750615367506,0.4425,2199.8,2199.1,13.13165553]
[1750615367706,7.53,2199.7,2199.2,0.0454662]
[1750615367913,7.53,2199.7,2199.1,13.13165553]
[1750615368096,7.53,2199.7,2199.1,14.52248108]
[1750615368300,7.53,2199.7,2199.2,0.04546645]
[1750615368616,7.53,2199.7,2199.1,1.83800668]
[1750615368840,7.53,2199.7,2199.1,0.44718113]
[1750615369051,0.4425,2199.4,2198.6,0.8089]
[1750615369184,0.4425,2199.2,2198.3,0.8089]
[1750615369390,7.83294278,2199.1,2198.3,0.8089]
[1750615369590,0.14234278,2199.0,2198.3,0.8089]
[1750615369894,0.14234278,2198.9,2198.4,1.87603207]
[1750615370200,0.14234278,2198.8,2198.4,1.87603207]
[1750615370414,7.6906,2199.1,2198.4,1.87603207]
[1750615370636,7.6906,2199.1,2198.2,17.95142068]
[1750615370637,0.4425,2198.8,2198.2,17.95142068]
[1750615370940,0.19894252,2198.7,2198.2,7.95142068]
[1750615371119,0.19894252,2198.6,2198.2,7.95142068]
[1750615371427,7.63,2198.5,2198.2,9.02578772]
[1750615373225,7.63,2198.5,2198.3,0.0621]
[1750615373523,7.63,2198.5,2198.2,9.02578772]
[1750615375930,7.63,2198.5,2198.2,9.08788772]
[1750615376228,7.63,2198.5,2198.2,9.02578772]
[1750615377604,0.4425,2198.8,2198.3,1.13729521]
[1750615377803,7.76634728,2198.7,2198.3,1.13729521]
[1750615378012,7.624,2198.7,2198.3,1.13729521]
[1750615378216,7.624,2198.7,2198.4,1.367543]
[1750615378626,7.91,2199.0,2198.4,14.54468467]
[1750615378830,0.14233922,2198.9,2198.5,2.37449799]
[1750615379149,0.14233922,2198.8,2198.5,2.37449799]
[1750615379295,7.626,2198.9,2198.5,2.41997862]
[1750615380330,7.626,2198.9,2198.5,2.37449799]
[1750615380925,7.626,2198.9,2198.5,2.41997862]
[1750615381136,7.626,2198.9,2198.5,2.37449799]
[1750615381354,0.20003971,2198.8,2198.4,1.367543]
[1750615381520,0.5002,2198.7,2198.4,1.367543]
[1750615382043,7.626,2198.9,2198.4,1.429643]
[1750615382044,8.0685,2198.9,2198.4,1.429643]
[1750615382247,0.14234449,2198.8,2198.4,1.367543]
[1750615382455,0.14234616,2198.7,2198.4,1.367543]
[1750615382742,8.1262,2198.9,2198.4,1.429643]
[1750615382945,0.14233762,2198.8,2198.4,1.429643]